Workbook

Sheet Amd 1.1 SR INDEX
A1: ='Amd 1.2 SR Rates'!B1 -> Willow Creek Water Company | D1: Amended Exhibit 1.1 SR
A2: ='Amd 1.2 SR Rates'!B2 -> General Rate Case Increase | E2: ='Amd 1.2 SR Rates'!L2 -> Docket No. 13-2506-01
A3: Index
A5: Exhibit No. | B5: Tab Label | C5: Title | D5: Description | E5: Page No.
A6: Amended 1.1 SR | B6: INDEX | C6: Index | E6: 1
A7: Amended 1.2 SR | B7: Rates | C7: ='Amd 1.2 SR Rates'!B3 -> Costs of Providing Water and Rate Calculations | D7: Calculates rates, including system, usage and overage rates. | E7: 2
A8: Amended 1.2 SR | B8: Notes | C8: (Footnotes for above worksheet) | D8: Notes and comments regarding Amended Exhibit 1.2 SR. | E8: 4
A9: Amended 1.3 SR | B9: Expenses | C9: ='Amd 1.3 SR Expenses'!B3 -> Adjustments to Expenses | D9: Lists and explains as needed all necessary expenses of the Company. | E9: 5
A10: Amended 1.3 SR | B10: Notes | C10: (Footnotes for above worksheet) | D10: Notes and comments regarding Amended Exhibit 1.3 SR. | E10: 7
A11: Amended 1.4 SR | B11: Rev & Exp | C11: ='Amd 1.4 SR Rev & Exp'!B3 -> Summary of Revenues Before and After Taxes, and Expenses | D11: Summarizes the necessary expenses and shows the revenues required to fund these expenses. | E11: 9
A12: 1.5 | B12: Reserve | C12: ='1.5 Reserve'!B3 -> Capital Reserves | D12: Sets the minimum savings requirement. | E12: 10
A13: 1.6 | B13: Deprec | C13: ='1.6 Deprec'!B3 -> Depreciation Expense & Accumulated Depreciation Reconciliation | D13: Lists the Company's assets and calculates the Depreciation Expense and Accumulated Depreciation. | E13: 11
A14: 1.7 | B14: CIAC | C14: ='1.7 CIAC'!B3 -> Contribution in Aid of Construction (CIAC) & Amortization of CIAC Reconciliation | D14: Lists the Company's assets contributed (donated) to the water company, usually by the developer. | E14: 12
A15: Amended 1.8 SR | B15: Rate Base | C15: ='Amd 1.8 SR RATE BASE'!B3 -> Rate Base | D15: Rate base is the value of property, or infrastructure, on which a public utility is permitted to earn a specified rate of return. | E15: 13
A16: Amended 1.9 SR | B16: Ret on Inv | C16: ='Amd 1.9 SR Ret on Inv'!B3 -> Return on Investment | D16: Lists the profit the Company has the opportunity to earn if the Company is not Non-Profit. | E16: 14
A17: Amended 1.10 SR | B17: Taxes | C17: ='Amd 1.10 SR Taxes'!B3 -> Projected Federal & State Income Taxes | D17: Estimates the amount of Federal and State Income Tax the Company's liable for. | E17: 15
A18: 1.11 SR | B18: Mod to Expenses | C18: ='1.11 SR Mod to Expenses'!B3 -> Modifications to Expense Amounts | D18: Shows the modifications to expense amounts made by the Division for its Surrebuttal Testimony | E18: 16
A19: 1.12 SR | B19: Mod to Customer # | C19: ='1.12 SR Mod to Customers #'!B3 -> Modifications to Customer Numbers and Overage Rate | D19: Shows the modifications by the Division to the number of customers and the overage rate. | E19: 18

Sheet Amd 1.2 SR Rates
B1: Willow Creek Water Company | J1: Amended Exhibit 1.2 SR
B2: General Rate Case Increase | L2: Docket No. 13-2506-01
B3: Costs of Providing Water and Rate Calculations
D4: A | F4: B
B5: Rate Summary
D6: All Customers
D7: Including | F7: Connected
D8: Standby | F8: Customers
A9: 1 | B9: System Fees (Standby) | D9: =H70 -> 39.85 | F9: =H70 -> 39.85 | G9: a
A10: 2 | B10: Usage Fees | F10: =L72 -> 31.95 | G10: b
A11: 3 | B11: Total Rates | D11: =SUM(D9:D10) -> 39.85 | F11: =SUM(F9:F10) -> 71.8 | G11: c
A12: 4
A13: 5 | B13: Overage (Conservation) Rates | F13: 4.5 | G13: d, d2
A14: 6
D15: Adjusted | F15: System Expenses (Fixed) | J15: Usage Expenses (Variable) | M15: e
D16: Total | F16: (Paid by ALL Customers) | J16: (Paid by CONNECTED Only)
D17: Expenses | F17: Total Customers: | H17: 48 | J17: Total CONNECTED: | L17: 43 | M17: f, f2
D18: [From Amended
B19: Expense Category | C19: NARUC # | D19: Exhibit 1.3 SR] | F19: Amount | G19: % | H19: Monthly Rates | J19: Amount | K19: % | L19: Monthly Rates | M19: g
A20: 7 | B20: Operation & Maintenance Expenses
A21: 8 | B21: ='Amd 1.3 SR Expenses'!B10 -> Salaries & Wages - Office Employees | C21: 601 | D21: ='Amd 1.3 SR Expenses'!G10 -> 0 | F21: =D21*G21 -> 0 | G21: 0.2 | J21: =D21*K21 -> 0 | K21: =1-G21 -> 0.8
A22: 9 | B22: ='Amd 1.3 SR Expenses'!B11 -> Salaries & Wages - Officers & Directors | C22: 603 | D22: ='Amd 1.3 SR Expenses'!G11 -> 0 | F22: 0 | G22: 0.2 | J22: 0 | K22: =1-G22 -> 0.8
A23: 10 | B23: ='Amd 1.3 SR Expenses'!B12 -> Employee Pensions & Benefits | C23: 604 | D23: ='Amd 1.3 SR Expenses'!G12 -> 0 | F23: 0 | G23: 0.2 | J23: 0 | K23: =1-G23 -> 0.8
A24: 11 | B24: ='Amd 1.3 SR Expenses'!B13 -> Purchased Water | D24: ='Amd 1.3 SR Expenses'!G13 -> 0 | F24: 0 | G24: 0 | J24: 0 | K24: 1
A25: 12 | B25: ='Amd 1.3 SR Expenses'!B14 -> Purchased Power (Electricity) | C25: 610 | D25: ='Amd 1.3 SR Expenses'!G14 -> 2800 | F25: =D25*G25 -> 0 | G25: 0 | J25: 2800 | K25: =1-G25 -> 1
A26: 13 | B26: ='Amd 1.3 SR Expenses'!B15 -> Purchased Power (Propane) | C26: 615 | D26: ='Amd 1.3 SR Expenses'!G15 -> 0 | F26: 0 | G26: 0 | J26: 0 | K26: 1
A27: 14 | B27: ='Amd 1.3 SR Expenses'!B16 -> Chemicals | C27: 618 | D27: ='Amd 1.3 SR Expenses'!G16 -> 550 | F27: 0 | G27: 0 | J27: 550 | K27: 1
A28: 15 | B28: ='Amd 1.3 SR Expenses'!B17 -> Materials and Supplies | C28: 620 | D28: ='Amd 1.3 SR Expenses'!G17 -> 0 | F28: 0 | G28: 0.1 | J28: 0 | K28: 0.9
A29: 16 | B29: ='Amd 1.3 SR Expenses'!B18 -> Contractual Services - Engineering | C29: 631 | D29: ='Amd 1.3 SR Expenses'!G18 -> 0 | F29: 0 | G29: 0.05 | J29: 0 | K29: 0.95
A30: 17 | B30: ='Amd 1.3 SR Expenses'!B19 -> Contractual Services - Accounting | C30: 632 | D30: ='Amd 1.3 SR Expenses'!G19 -> 1400 | F30: 140 | G30: 0.1 | J30: 1260 | K30: 0.9
A31: 18 | B31: ='Amd 1.3 SR Expenses'!B20 -> Contractual Services - Legal | C31: 633 | D31: ='Amd 1.3 SR Expenses'!G20 -> 500 | F31: 25 | G31: 0.05 | J31: 475 | K31: 0.95
A32: 19 | B32: ='Amd 1.3 SR Expenses'!B21 -> Contractual Services - Management Fees | C32: 634 | D32: ='Amd 1.3 SR Expenses'!G21 -> 0 | F32: 0 | G32: 0.05 | J32: 0 | K32: 0.95
A33: 20 | B33: ='Amd 1.3 SR Expenses'!B22 -> Contractual Services - Testing & Lab Fees | C33: 635a | D33: ='Amd 1.3 SR Expenses'!G22 -> 1400 | F33: 70 | G33: 0.05 | J33: 1330 | K33: 0.95
A34: 21 | B34: ='Amd 1.3 SR Expenses'!B23 -> Contractual Services - Water Sampling | C34: 635b | D34: ='Amd 1.3 SR Expenses'!G23 -> 0 | F34: 0 | G34: 0.05 | J34: 0 | K34: 0.95
A35: 22 | B35: ='Amd 1.3 SR Expenses'!B24 -> Contractual Services - Water System Maintenance | C35: 636 | D35: ='Amd 1.3 SR Expenses'!G24 -> 1800 | F35: 90 | G35: 0.05 | J35: 1710 | K35: 0.95
A36: 23 | B36: ='Amd 1.3 SR Expenses'!B25 -> Contractual Services - Water System Repairs | C36: 637 | D36: ='Amd 1.3 SR Expenses'!G25 -> 1800 | F36: 360 | G36: 0.2 | J36: 1440 | K36: 0.8
A37: 24 | B37: ='Amd 1.3 SR Expenses'!B26 -> Contractual Services - Other (Equipment Operator) | D37: ='Amd 1.3 SR Expenses'!G26 -> 600 | F37: =D37*G37 -> 120 | G37: 0.2 | J37: =D37*K37 -> 480 | K37: =1-G37 -> 0.8
A38: 25 | B38: ='Amd 1.3 SR Expenses'!B27 -> Contractual Services - Billing (Meter Reading) | C38: 639 | D38: ='Amd 1.3 SR Expenses'!G27 -> 0 | F38: 0 | G38: 0.2 | J38: 0 | K38: 0.8
A39: 26 | B39: ='Amd 1.3 SR Expenses'!B28 -> Interest-Free Loan Payments for Arsenic Project | C39: 642 | D39: ='Amd 1.3 SR Expenses'!G28 -> 5520 | F39: 1104 | G39: 0.2 | J39: 4416 | K39: 0.8
A40: 27 | B40: ='Amd 1.3 SR Expenses'!B29 -> Transportation Expense | C40: 650 | D40: ='Amd 1.3 SR Expenses'!G29 -> 0 | F40: 0 | G40: 0.05 | J40: 0 | K40: 0.95
A41: 28 | B41: ='Amd 1.3 SR Expenses'!B30 -> Insurance - General Liability | C41: 657 | D41: ='Amd 1.3 SR Expenses'!G30 -> 1800 | F41: 180 | G41: 0.1 | J41: 1620 | K41: 0.9
A42: 29 | B42: ='Amd 1.3 SR Expenses'!B31 -> Insurance - Other | C42: 659 | D42: ='Amd 1.3 SR Expenses'!G31 -> 0 | F42: 0 | G42: 0.05 | J42: 0 | K42: 0.95
A43: 30 | B43: ='Amd 1.3 SR Expenses'!B32 -> Regulatory Commission Expense | C43: 667 | D43: ='Amd 1.3 SR Expenses'!G32 -> 50 | F43: 25 | G43: 0.5 | J43: 25 | K43: 0.5
A44: 31 | B44: ='Amd 1.3 SR Expenses'!B33 -> Bad Debt Expense | C44: 670 | D44: ='Amd 1.3 SR Expenses'!G33 -> 0 | F44: 0 | G44: 0.2 | J44: 0 | K44: 0.8
A45: 32 | B45: ='Amd 1.3 SR Expenses'!B34 -> Miscellaneous Expense | C45: 675
A46: 33 | B46: ='Amd 1.3 SR Expenses'!B35 -> Association/Membership Dues | C46: 675a | D46: ='Amd 1.3 SR Expenses'!G35 -> 0 | F46: =D46*G46 -> 0 | G46: 0.2 | J46: 0 | K46: =1-G46 -> 0.8
A47: 34 | B47: ='Amd 1.3 SR Expenses'!B36 -> Office Supplies and Postage | C47: 675b | D47: ='Amd 1.3 SR Expenses'!G36 -> 425 | F47: =D47*G47 -> 85 | G47: 0.2 | J47: 340 | K47: =1-G47 -> 0.8
A48: 35 | B48: ='Amd 1.3 SR Expenses'!B37 -> Bank Charges | C48: 675c | D48: ='Amd 1.3 SR Expenses'!G37 -> 0 | F48: =D48*G48 -> 0 | G48: 0.2 | J48: 0 | K48: =1-G48 -> 0.8
A49: 36 | B49: ='Amd 1.3 SR Expenses'!B38 -> Other Supplies | C49: 675d | D49: ='Amd 1.3 SR Expenses'!G38 -> 0 | F49: =D49*G49 -> 0 | G49: 0.2 | J49: 0 | K49: =1-G49 -> 0.8
A50: 37 | B50: Total Operation & Maintenance Expenses | D50: =SUM(D21:D49) -> 18645 | F50: =SUM(F21:F49) -> 2199 | H50: =CEILING((F50/$H$17/12),0.05) -> 3.85 | J50: =SUM(J21:J49) -> 16446 | L50: =CEILING((J50/$L$17/12),0.05) -> 31.9
A53: 38 | B53: Capital Reserve Account Funding
A54: 39 | B54: Annual Depreciation Expense | D54: ='1.5 Reserve'!C7 -> 20697 | F54: =D54*G54 -> 0
A55: 40 | B55: Total Capital Reserve Account Funding | D55: =Reserve -> 20697 | F55: =D55 -> 20697 | H55: =CEILING((F55/$H$17/12),0.05) -> 35.95
A58: 41 | B58: Return on Investment (Profit)
A59: 42 | B59: Return on Investment | D59: ='Amd 1.3 SR Expenses'!G47 -> 0 | F59: =D59*G59 -> 0 | G59: 0.2 | K59: =1-G59 -> 0.8
A60: 43 | B60: Total Return on Investment (Profit) | D60: =D59 -> 0 | F60: =D60 -> 0 | H60: =CEILING((F60/$H$17/12),0.1) -> 0
A63: 44 | B63: Taxes
A64: 45 | B64: Property Tax | C64: 408 | D64: ='Amd 1.3 SR Expenses'!G50 -> 11 | F64: =D64*G64 -> 2.2 | G64: 0.2 | J64: =D64*K64 -> 8.8 | K64: =1-G64 -> 0.8
A65: 46 | B65: Projected Federal and State Income Tax | C65: 409 | D65: ='Amd 1.3 SR Expenses'!G51 -> 0 | F65: =D65*G65 -> 0 | G65: 0.2 | J65: =D65*K65 -> 0 | K65: =1-G65 -> 0.8
A66: 47 | B66: Total Taxes | D66: =SUM(D64:D65) -> 11 | F66: =SUM(F64:F65) -> 2.2 | H66: =CEILING((F66/$H$17/12),0.05) -> 0.05 | J66: =SUM(J64:J65) -> 8.8 | L66: =CEILING((J66/$L$17/12),0.05) -> 0.05
A69: 48 | B69: Monthly Rates per Customer Category
A70: 49 | B70: System Fees (Paid by ALL Customer Categories) | H70: =SUM(H50:H67) -> 39.85
A71: 50 | B71: Usage Fees (Paid by CONNECTED Customers Only and in addition)
A72: 51 | B72: to System Fees) | L72: =SUM(L50:L67) -> 31.95
A86: -------------------------------------------------- end ------------------------------------------------------

Sheet Amd 1.2 SR Notes
B1: Willow Creek Water Company | H1: Amended Exhibit 1.2 SR
B2: General Rate Case Increase | J2: ='Amd 1.2 SR Rates'!L2 -> Docket No. 13-2506-01
B3: Costs of Providing Water and Rates
B5: Comments and Footnotes:
A59: -------------------------------------------------- end ------------------------------------------------------

Sheet Amd 1.3 SR Expenses
B1: ='Amd 1.2 SR Rates'!B1 -> Willow Creek Water Company | E1: Amended Exhibit 1.3 SR
B2: ='Amd 1.2 SR Rates'!B2 -> General Rate Case Increase | G2: ='Amd 1.2 SR Rates'!L2 -> Docket No. 13-2506-01
B3: Adjustments to Expenses
D5: Projected | F5: Additional | G5: Adjusted Total
D6: Expenses | F6: Division | G6: Expense
D7: [From Rate | E7: Division | F7: Adjustments | G7: [To Amended
B8: Expense Category | C8: NARUC # | D8: Case Filing] | E8: Adjustments | F8: [Modified] | G8: Exhibit 1.2 SR]
A9: 1 | B9: Operation & Maintenance Expenses
A10: 2 | B10: Salaries & Wages - Office Employees | C10: 601 | G10: =D10+E10+F10 -> 0
A11: 3 | B11: Salaries & Wages - Officers & Directors | C11: 603 | G11: =D11+E11+F11 -> 0
A12: 4 | B12: Employee Pensions & Benefits | C12: 604 | G12: =D12+E12+F12 -> 0
A13: 5 | B13: Purchased Water | G13: 0
A14: 6 | B14: Purchased Power (Electricity) | C14: 615 | D14: 3120 | F14: -320 | G14: 2800 | H14: a, a2
A15: 7 | B15: Purchased Power (Propane) | C15: 615 | D15: 1080 | F15: -1080 | G15: 0 | H15: b, b2
A16: 8 | B16: Chemicals | C16: 618 | D16: 900 | E16: -350 | G16: 550 | H16: c
A17: 9 | B17: Materials and Supplies | C17: 620 | G17: 0
A18: 10 | B18: Contractual Services - Engineering | C18: 631 | G18: 0
A19: 11 | B19: Contractual Services - Accounting | C19: 632 | D19: 2160 | F19: -760 | G19: 1400 | H19: p2
A20: 12 | B20: Contractual Services - Legal | C20: 633 | D20: 960 | E20: -460 | G20: 500 | H20: d
A21: 13 | B21: Contractual Services - Management Fees | C21: 634 | G21: 0
A22: 14 | B22: Contractual Services - Testing & Lab Fees | C22: 635a | D22: 2496 | E22: -496 | F22: -600 | G22: 1400 | H22: e, e2
A23: 15 | B23: Contractual Services - Water Sampling | C23: 635b | G23: 0
A24: 16 | B24: Contractual Services - Water System Maintenance | C24: 636 | D24: 0 | E24: 3300 | F24: -1500 | G24: 1800 | H24: f, f2
A25: 17 | B25: Contractual Services - Water System Repairs | C25: 637 | D25: 3000 | F25: -1200 | G25: 1800 | H25: g, g2
A26: 18 | B26: Contractual Services - Other (Equipment Operator) | C26: 640 | D26: 600 | G26: 600 | H26: h
A27: 19 | B27: Contractual Services - Billing (Meter Reading) | C27: 639 | D27: 360 | E27: -360 | G27: 0 | H27: i
A28: 20 | B28: Interest-Free Loan Payments for Arsenic Project | C28: 675 | D28: 5520 | G28: 5520 | H28: j
A29: 21 | B29: Transportation Expense | C29: 650 | E29: 0 | G29: 0
A30: 22 | B30: Insurance - General Liability | C30: 657 | D30: 2100 | F30: -300 | G30: 1800 | H30: q2
A31: 23 | B31: Insurance - Other | C31: 659 | E31: 0 | G31: 0
A32: 24 | B32: Regulatory Commission Expense | C32: 667 | E32: 50 | G32: 50 | H32: k
A33: 25 | B33: Bad Debt Expense | C33: 670 | G33: 0
A34: 26 | B34: Miscellaneous Expense | C34: 675 | G34: 0
A35: 27 | B35: Association/Membership Dues | C35: 675a | G35: 0
A36: 28 | B36: Office Supplies and Postage | C36: 675b | E36: 425 | G36: 425 | H36: l
A37: 29 | B37: Bank Charges | C37: 675c | G37: 0
A38: 30 | B38: Other Supplies | C38: 675d | G38: 0
A39: 31 | B39: Total Operation & Maintenance Expenses | D39: =SUM(D10:D38) -> 22296 | E39: 2109 | F39: -5760 | G39: =SUM(G10:G38) -> 18645
A41: 32 | B41: Annual Capital Reserve Account Funding [From Exhibit 1.5]
A42: 33 | B42: Annual Capital Reserve Account Funding | C42: 403 | E42: =G42-D42 -> 20697 | G42: =Dep_Exp*-1 -> 20697 | H42: m
A43: 34 | B43: Annual Capital Reserve Account Funding | D43: =SUM(D41:D42) -> 0 | E43: 20697 | G43: =G42 -> 20697
A45: 35 | B45: Return on Investment (Profit) [From Amended Exhibit 1.9 SR]
A46: 36 | B46: Return on Investment | D46: ='Amd 1.9 SR Ret on Inv'!C10 -> 0 | E46: =D46*-1 -> 0 | F46: =E46*-1 -> 0 | G46: =D46+E46 -> 0 | H46: n
A47: 37 | B47: Total Return on Investment (Profit) | D47: =D46 -> 0 | E47: =E46 -> 0 | F47: =F46 -> 0 | G47: =G46 -> 0
A49: 38 | B49: Taxes [From Amended Exhibit 1.10 SR]
A50: 39 | B50: Property Tax | C50: 408 | D50: 0 | E50: 11 | G50: =D50+E50 -> 11 | H50: o
A51: 40 | B51: Projected Federal and State Income Tax | C51: 409 | D51: 0 | E51: =-D51 -> 0 | G51: ='Amd 1.10 SR Taxes'!C21 -> 0
A52: 41 | B52: Total Taxes | D52: =SUM(D50:D51) -> 0 | E52: =SUM(E50:E51) -> 11 | G52: =SUM(G50:G51) -> 11
A64: -------------------------------------------------- end ------------------------------------------------------

Sheet Amd 1.3 SR Notes
B1: ='Amd 1.2 SR Rates'!B1 -> Willow Creek Water Company | E1: Amended Exhibit 1.3 SR
B2: ='Amd 1.2 SR Rates'!B2 -> General Rate Case Increase | F2: ='Amd 1.2 SR Rates'!L2 -> Docket No. 13-2506-01
B3: Adjustments to Expenses
B5: Footnotes and Comments:

Sheet Amd 1.4 SR Rev & Exp
B1: ='Amd 1.2 SR Rates'!B1 -> Willow Creek Water Company | F1: Amended Exhibit 1.4 SR
B2: ='Amd 1.2 SR Rates'!B2 -> General Rate Case Increase | G2: ='Amd 1.2 SR Rates'!L2 -> Docket No. 13-2506-01
B3: Summary of Revenues Before and After Taxes, and Expenses
E5: Monthly
C6: Number of | E6: Rate | F6: Months
E7: [From Amended
C8: Customers | E8: Exh 1.2 SR] | F8: In Year | G8: Amount
B9: Revenues
A10: 1 | B10: Before Taxes
A11: 2 | B11: Connected Customers | C11: ='Amd 1.2 SR Rates'!$L$17 -> 43 | D11: a | E11: ='Amd 1.2 SR Rates'!H50+'Amd 1.2 SR Rates'!L50+'Amd 1.2 SR Rates'!H55+'Amd 1.2 SR Rates'!H60 -> 71.7 | F11: 12 | G11: =C11*E11*F11 -> 36997.2
A12: 3 | B12: Standby Customers | C12: ='Amd 1.2 SR Rates'!$H$17-'Amd 1.2 SR Rates'!$L$17 -> 5 | D12: a | E12: ='Amd 1.2 SR Rates'!H50+'Amd 1.2 SR Rates'!H55+'Amd 1.2 SR Rates'!H60 -> 39.8 | F12: 12 | G12: =C12*E12*F12 -> 2388
A13: 4 | B13: Total Revenue Before Taxes | G13: =G11+G12 -> 39385.2
A14: 5
A15: 6 | B15: After Taxes
A16: 7 | B16: Connected Customers | C16: ='Amd 1.2 SR Rates'!$L$17 -> 43 | E16: =Rate_User_Total -> 71.8 | F16: 12 | G16: =C16*E16*F16 -> 37048.8
A17: 8 | B17: Standby Customers | C17: ='Amd 1.2 SR Rates'!$H$17-'Amd 1.2 SR Rates'!$L$17 -> 5 | E17: =Rate_System_Fee -> 39.85 | F17: 12 | G17: =C17*E17*F17 -> 2391
A18: 9 | B18: Total Revenue After Taxes | G18: =G16+G17 -> 39439.8 | H18: b
A19: 10
A20: 11 | B20: Expenses
E21: References
A22: 12 | B22: ='Amd 1.2 SR Rates'!B50 -> Total Operation & Maintenance Expenses | E22: [From Amd Exhibit 1.3 SR] | G22: =OandM_Exp -> 18645
A23: 13 | B23: ='Amd 1.2 SR Rates'!B64 -> Property Tax | E23: [From Amd Exhibit 1.3 SR] | G23: =Tax_Exp -> 11
A24: 14 | B24: ='Amd 1.2 SR Rates'!B65 -> Projected Federal and State Income Tax | G24: ='Amd 1.2 SR Rates'!D65 -> 0
A25: 15 | B25: ='Amd 1.2 SR Rates'!B55 -> Total Capital Reserve Account Funding | E25: [From Exhibit 1.5] | G25: ='Amd 1.2 SR Rates'!D55 -> 20697
A26: 16 | B26: ='Amd 1.2 SR Rates'!B60 -> Total Return on Investment (Profit) | G26: ='Amd 1.2 SR Rates'!F60 -> 0
A27: 17 | B27: Total Expenses | G27: =SUM(G22:G26) -> 39353
A28: 18
A29: 19 | B29: Projected Annual Amount Over/(Under) Earned (line 9 - line 17) | G29: =G18-G27 -> 86.8 | H29: c
A53: -------------------------------------------------- end ------------------------------------------------------

Sheet 1.5 Reserve
B1: ='Amd 1.2 SR Rates'!B1 -> Willow Creek Water Company | D1: Exhibit 1.5
B2: ='Amd 1.2 SR Rates'!B2 -> General Rate Case Increase | D2: ='Amd 1.2 SR Rates'!L2 -> Docket No. 13-2506-01
B3: Capital Reserves
B5: Description | C5: Amount | D5: References
B6: Annual Capital Reserve Account Funding
A7: 1 | B7: Annual Depreciation Expense | C7: =Dep_Exp*-1 -> 20697 | D7: [From Exhibit 1.6] | E7: a
A8: 2
A9: 3 | B9: Total Annual Capital Reserve Account Funding | C9: =C7 -> 20697 | D9: [To Amd Exhibit 1.3 SR]
A40: -------------------------------------------------- end ------------------------------------------------------

Sheet 1.6 Deprec
B1: ='Amd 1.2 SR Rates'!B1 -> Willow Creek Water Company | Z1: Exhibit 1.6
B2: ='Amd 1.2 SR Rates'!B2 -> General Rate Case Increase | AB2: ='Amd 1.2 SR Rates'!L2 -> Docket No. 13-2506-01
B3: Depreciation Expense & Accumulated Depreciation Reconciliation
B5: Depreciation Rates for Water Utilities Per R746-332 | F5: 2009 Plant Accounts | L5: 2010 Plant Accounts | Q5: 2011 Plant Accounts | V5: 2012 Plant Accounts | AB5: Accumulated Depreciation Amounts Reported on 2012Annual Report
B6: NARUC Acct # | C6: Account Name | D6: Depreciation Rate Applied | E6: Average Service Life (Years) | F6: Beginning Balance 01/01/2009 | G6: Additions | H6: Balance at end of Year | I6: Accum Depreciation Beginning Balance | J6: Annual Depreciation Expense for Year | K6: Accum Depreciation through the end of Year | L6: Beginning Balance | M6: Additions | N6: Balance at end of Year | O6: Annual Depreciation Expense for Year | P6: Accum Depreciation through the end of Year | Q6: Beginning Balance | R6: Additions | S6: Balance at end of Year | T6: Annual Depreciation Expense for Year | U6: Accum Depreciation through the end of Year | V6: Beginning Balance | W6: Additions | X6: Balance at end of Year | Y6: Annual Depreciation Expense for Year | Z6: Accum Depreciation through the end of Year
A7: 1 | C7: Depreciable
A8: 2 | B8: 304 | C8: Structures and Improvements | D8: 0.029 | E8: 35 | F8: 255526 | G8: 111390 | H8: =IF(F8+G8=0,0,F8+G8) -> 366916 | I8: -400 | J8: =ROUND(IF((H8+I8)>(H8*$D8),(H8*$D8*-1),((H8+I8))*-1),0) -> -10641 | K8: =IF(J8=0,0,J8+I8) -> -11041 | L8: =IF(H8=0,0,H8) -> 366916 | M8: 132552 | N8: =IF(L8+M8=0,0,L8+M8) -> 499468 | O8: =ROUND(IF((N8+K8)>(N8*$D8),(N8*$D8*-1),((N8+K8))*-1),0) -> -14485 | P8: =O8+K8 -> -25526 | Q8: =IF(N8=0,0,N8) -> 499468 | S8: =IF(Q8+R8=0,0,Q8+R8) -> 499468 | T8: =ROUND(IF((S8+P8)>(S8*$D8),(S8*$D8*-1),((S8+P8))*-1),0) -> -14485 | U8: =T8+P8 -> -40011 | V8: =IF(S8=0,0,S8) -> 499468 | X8: =IF(V8+W8=0,0,V8+W8) -> 499468 | Y8: =ROUND(IF((X8+U8)>(X8*$D8),(X8*$D8*-1),((X8+U8))*-1),0) -> -14485 | Z8: =Y8+U8 -> -54496 | AB8: 14485
A9: 3 | B9: 305 | C9: Collecting and Impounding Reservoirs | D9: 0.02 | E9: 50 | H9: =IF(F9+G9=0,0,F9+G9) -> 0 | J9: =ROUND(IF((H9+I9)>(H9*$D9),(H9*$D9*-1),((H9+I9))*-1),0) -> 0 | K9: =IF(J9=0,0,J9+I9) -> 0 | L9: =IF(H9=0,0,H9) -> 0 | N9: =IF(L9+M9=0,0,L9+M9) -> 0 | O9: =ROUND(IF((N9+K9)>(N9*$D9),(N9*$D9*-1),((N9+K9))*-1),0) -> 0 | P9: =O9+K9 -> 0 | Q9: =IF(N9=0,0,N9) -> 0 | S9: =IF(Q9+R9=0,0,Q9+R9) -> 0 | T9: =ROUND(IF((S9+P9)>(S9*$D9),(S9*$D9*-1),((S9+P9))*-1),0) -> 0 | U9: =T9+P9 -> 0 | V9: =IF(S9=0,0,S9) -> 0 | X9: =IF(V9+W9=0,0,V9+W9) -> 0 | Y9: =ROUND(IF((X9+U9)>(X9*$D9),(X9*$D9*-1),((X9+U9))*-1),0) -> 0 | Z9: =Y9+U9 -> 0
A10: 4 | B10: 306 | C10: Lakes, Rivers, and Other Intakes | D10: 0.029 | E10: 35 | H10: 0 | J10: 0 | K10: 0 | L10: 0 | N10: 0 | O10: 0 | P10: 0 | Q10: 0 | S10: 0 | T10: 0 | U10: 0 | V10: 0 | X10: 0 | Y10: 0 | Z10: 0
A11: 5 | B11: 307 | C11: Wells and Springs | D11: 0.04 | E11: 25 | F11: 20000 | H11: 20000 | I11: -400 | J11: =ROUND(IF((H11+I11)>(H11*$D11),(H11*$D11*-1),((H11+I11))*-1),0) -> -800 | K11: -1200 | L11: 20000 | N11: 20000 | O11: =ROUND(IF((N11+K11)>(N11*$D11),(N11*$D11*-1),((N11+K11))*-1),0) -> -800 | P11: -2000 | Q11: 20000 | S11: 20000 | T11: =ROUND(IF((S11+P11)>(S11*$D11),(S11*$D11*-1),((S11+P11))*-1),0) -> -800 | U11: -2800 | V11: 20000 | W11: 47143 | X11: 67143 | Y11: =ROUND(IF((X11+U11)>(X11*$D11),(X11*$D11*-1),((X11+U11))*-1),0) -> -2686 | Z11: -5486 | AB11: 2686
A12: 6 | B12: 308 | C12: Infiltration Galleries and Tunnels | D12: 0.04 | E12: 25 | H12: 0 | J12: =ROUND(IF((H12+I12)>(H12*$D12),(H12*$D12*-1),((H12+I12))*-1),0) -> 0 | K12: 0 | L12: 0 | N12: 0 | O12: =ROUND(IF((N12+K12)>(N12*$D12),(N12*$D12*-1),((N12+K12))*-1),0) -> 0 | P12: 0 | Q12: 0 | S12: 0 | T12: =ROUND(IF((S12+P12)>(S12*$D12),(S12*$D12*-1),((S12+P12))*-1),0) -> 0 | U12: 0 | V12: 0 | X12: 0 | Y12: =ROUND(IF((X12+U12)>(X12*$D12),(X12*$D12*-1),((X12+U12))*-1),0) -> 0 | Z12: 0
A13: 7 | B13: 309 | C13: Supply Mains | D13: 0.02 | E13: 50 | H13: 0 | J13: 0 | K13: 0 | L13: 0 | N13: 0 | O13: 0 | P13: 0 | Q13: 0 | S13: 0 | T13: 0 | U13: 0 | V13: 0 | X13: 0 | Y13: 0 | Z13: 0
A14: 8 | B14: 310 | C14: Power Generation Equipment | D14: 0.09 | E14: 10 | H14: 0 | J14: 0 | K14: 0 | L14: 0 | N14: 0 | O14: 0 | P14: 0 | Q14: 0 | S14: 0 | T14: 0 | U14: 0 | V14: 0 | X14: 0 | Y14: 0 | Z14: 0
A15: 9 | B15: 311 | C15: Pumping Equipment | D15: 0.05 | E15: 20 | H15: 0 | J15: 0 | K15: 0 | L15: 0 | M15: 29014 | N15: 29014 | O15: -1451 | P15: -1451 | Q15: 29014 | S15: 29014 | T15: -1451 | U15: -2902 | V15: 29014 | X15: 29014 | Y15: -1451 | Z15: -4353 | AB15: 1451
A16: 10 | B16: 320 | C16: Water Treatment Equipment | D16: 0.05 | E16: 20 | H16: 0 | J16: 0 | K16: 0 | L16: 0 | N16: 0 | O16: 0 | P16: 0 | Q16: 0 | S16: 0 | T16: 0 | U16: 0 | V16: 0 | X16: 0 | Y16: 0 | Z16: 0
A17: 11 | B17: 330 | C17: Distribution Reservoirs & Standpipes | D17: 0.033 | E17: 30 | H17: 0 | I17: -4202 | J17: 4202 | K17: 0 | L17: 0 | N17: 0 | O17: 0 | P17: 0 | Q17: 0 | S17: 0 | T17: 0 | U17: 0 | V17: 0 | X17: 0 | Y17: 0 | Z17: 0
A18: 12 | B18: 331 | C18: Transmission and Distribution Mains | D18: 0.02 | E18: 50 | F18: 75000 | H18: 75000 | I18: -750 | J18: -1500 | K18: -2250 | L18: 75000 | N18: 75000 | O18: -1500 | P18: -3750 | Q18: 75000 | S18: 75000 | T18: -1500 | U18: -5250 | V18: 75000 | X18: 75000 | Y18: -1500 | Z18: -6750
A19: 13 | B19: 333 | C19: Services | D19: 0.033 | E19: 30 | H19: 0 | J19: 0 | K19: 0 | L19: 0 | N19: 0 | O19: 0 | P19: 0 | Q19: 0 | S19: 0 | T19: 0 | U19: 0 | V19: 0 | X19: 0 | Y19: 0 | Z19: 0
A20: 14 | B20: 334 | C20: Meters and Meter Installations | D20: 0.026 | E20: 35 | H20: 0 | J20: 0 | K20: 0 | L20: 0 | N20: 0 | O20: 0 | P20: 0 | Q20: 0 | S20: 0 | T20: 0 | U20: 0 | V20: 0 | X20: 0 | Y20: 0 | Z20: 0
A21: 15 | B21: 335 | C21: Hydrants | D21: 0.024 | E21: 40 | H21: 0 | J21: 0 | K21: 0 | L21: 0 | N21: 0 | O21: 0 | P21: 0 | Q21: 0 | S21: 0 | T21: 0 | U21: 0 | V21: 0 | X21: 0 | Y21: 0 | Z21: 0
A22: 16 | B22: 336 | C22: Backflow Prevention Devices | D22: 0.026 | E22: 35 | H22: 0 | J22: 0 | K22: 0 | L22: 0 | N22: 0 | O22: 0 | P22: 0 | Q22: 0 | S22: 0 | T22: 0 | U22: 0 | V22: 0 | X22: 0 | Y22: 0 | Z22: 0
A23: 17 | B23: 339 | C23: Other Plant & Misc. Equipment | D23: 0.09 | E23: 10 | H23: 0 | J23: 0 | K23: 0 | L23: 0 | N23: 0 | O23: 0 | P23: 0 | Q23: 0 | S23: 0 | T23: 0 | U23: 0 | V23: 0 | X23: 0 | Y23: 0 | Z23: 0
A24: 18 | B24: 340 | C24: Office Furniture and Equipment | D24: 0.048 | E24: 20 | H24: 0 | J24: 0 | K24: 0 | L24: 0 | N24: 0 | O24: 0 | P24: 0 | Q24: 0 | S24: 0 | T24: 0 | U24: 0 | V24: 0 | X24: 0 | Y24: 0 | Z24: 0
A25: 19 | B25: 341 | C25: Transportation Equipment | D25: 0.129 | E25: 7 | H25: 0 | J25: 0 | K25: 0 | L25: 0 | N25: 0 | O25: 0 | P25: 0 | Q25: 0 | S25: 0 | T25: 0 | U25: 0 | V25: 0 | X25: 0 | Y25: 0 | Z25: 0
A26: 20 | B26: 342 | C26: Stores Equipment | D26: 0.05 | E26: 20 | H26: 0 | J26: 0 | K26: 0 | L26: 0 | N26: 0 | O26: 0 | P26: 0 | Q26: 0 | S26: 0 | T26: 0 | U26: 0 | V26: 0 | X26: 0 | Y26: 0 | Z26: 0
A27: 21 | B27: 343 | C27: Tools, Shop and Garage Equipment | D27: 0.063 | E27: 15 | H27: 0 | J27: 0 | K27: 0 | L27: 0 | N27: 0 | O27: 0 | P27: 0 | Q27: 0 | S27: 0 | T27: 0 | U27: 0 | V27: 0 | X27: 0 | Y27: 0 | Z27: 0
A28: 22 | B28: 344 | C28: Laboratory Equipment | D28: 0.067 | E28: 15 | H28: 0 | J28: 0 | K28: 0 | L28: 0 | N28: 0 | O28: 0 | P28: 0 | Q28: 0 | S28: 0 | T28: 0 | U28: 0 | V28: 0 | X28: 0 | Y28: 0 | Z28: 0
A29: 23 | B29: 345 | C29: Power Operated Equipment | D29: 0.09 | E29: 10 | H29: 0 | J29: 0 | K29: 0 | L29: 0 | N29: 0 | O29: 0 | P29: 0 | Q29: 0 | S29: 0 | T29: 0 | U29: 0 | V29: 0 | X29: 0 | Y29: 0 | Z29: 0
A30: 24 | B30: 346 | C30: Communication Equipment | D30: 0.09 | E30: 10 | H30: 0 | J30: 0 | K30: 0 | L30: 0 | N30: 0 | O30: 0 | P30: 0 | Q30: 0 | S30: 0 | T30: 0 | U30: 0 | V30: 0 | X30: 0 | Y30: 0 | Z30: 0
A31: 25 | B31: 347 | C31: Miscellaneous Equipment | D31: 0.09 | E31: 10 | F31: 6390 | H31: 6390 | J31: -575 | K31: -575 | L31: 6390 | N31: 6390 | O31: -575 | P31: -1150 | Q31: 6390 | S31: 6390 | T31: -575 | U31: -1725 | V31: 6390 | X31: 6390 | Y31: -575 | Z31: -2300 | AB31: 575
A32: 26 | B32: 348 | C32: Other Tangible Plant | D32: 0.09 | E32: 10 | H32: 0 | J32: 0 | K32: 0 | L32: 0 | N32: 0 | O32: 0 | P32: 0 | Q32: 0 | S32: 0 | T32: 0 | U32: 0 | V32: 0 | X32: 0 | Y32: 0 | Z32: 0
A33: 27 | N33: 0 | P33: =O33+K33 -> 0 | U33: =T33+P33 -> 0 | Z33: =Y33+U33 -> 0
A34: 28 | N34: 0 | P34: 0 | U34: 0 | Z34: 0
A35: 29 | N35: 0 | P35: 0 | U35: 0 | Z35: 0
A36: 30 | D36: Total | F36: =SUM(F8:F35) -> 356916 | G36: 111390 | H36: 468306 | I36: -5752 | J36: -9314 | K36: -15066 | L36: 468306 | M36: 161566 | N36: 629872 | O36: -18811 | P36: -33877 | Q36: 629872 | R36: 0 | S36: 629872 | T36: -18811 | U36: -52688 | V36: 629872 | W36: 47143 | X36: =SUM(X8:X35) -> 677015 | Y36: =SUM(Y8:Y35) -> -20697 | Z36: -73385 | AB36: =SUM(AB7:AB35) -> 19197
F37: =F5 -> 2009 Plant Accounts | L37: =L5 -> 2010 Plant Accounts | Q37: =Q5 -> 2011 Plant Accounts | Y37: [To Exh 1.5] | Z37: [To Amended Exh 1.8 SR] | AB37: [To Amended Exhibit 1.8 SR]
C51: -------------------------------------------------- end ------------------------------------------------------

Sheet 1.7 CIAC
B1: ='Amd 1.2 SR Rates'!B1 -> Willow Creek Water Company | Z1: Exhibit 1.7
B2: ='Amd 1.2 SR Rates'!B2 -> General Rate Case Increase | AB2: ='Amd 1.2 SR Rates'!L2 -> Docket No. 13-2506-01
B3: Contribution in Aid of Construction (CIAC) & Amortization of CIAC Reconciliation
B5: Depreciation Rates for Water Utilities Per R746-332 | F5: 2009 Plant Accounts | L5: 2010 Plant Accounts | Q5: 2011 Plant Accounts | V5: 2012 Plant Accounts | AB5: Amortization of CIAC reported on 2012 Annual Report
B6: NARUC Acct # | C6: Account Name | D6: Depreciation Rate Applied | E6: Average Service Life (Years) | F6: Beginning Balance 01/01/2009 | G6: Additions | H6: Balance at end of Year | I6: Accum Depreciation Beginning Balance | J6: Annual Depreciation Expense for Year | K6: Accum Depreciation through the end of Year | L6: Beginning Balance | M6: Additions | N6: Balance at end of Year | O6: Annual Depreciation Expense for Year | P6: Accum Depreciation through the end of Year | Q6: Beginning Balance | R6: Additions | S6: Balance at end of Year | T6: Annual Depreciation Expense for Year | U6: Accum Depreciation through the end of Year | V6: Beginning Balance | W6: Additions | X6: Balance at end of Year | Y6: Annual CIAC for Year | Z6: Accum Amortization of CIAC through the end of Year
A7: 1 | C7: Depreciable
A8: 2 | B8: 304 | C8: Structures and Improvements | D8: 0.029 | E8: 35 | F8: 255526 | G8: 111390 | H8: =IF(F8+G8=0,0,F8+G8) -> 366916 | I8: -400 | J8: =ROUND(IF((H8+I8)>(H8*$D8),(H8*$D8*-1),((H8+I8))*-1),0) -> -10641 | K8: =IF(J8=0,0,J8+I8) -> -11041 | L8: =IF(H8=0,0,H8) -> 366916 | M8: 132552 | N8: =IF(L8+M8=0,0,L8+M8) -> 499468 | O8: =ROUND(IF((N8+K8)>(N8*$D8),(N8*$D8*-1),((N8+K8))*-1),0) -> -14485 | P8: =O8+K8 -> -25526 | Q8: =IF(N8=0,0,N8) -> 499468 | S8: =IF(Q8+R8=0,0,Q8+R8) -> 499468 | T8: =ROUND(IF((S8+P8)>(S8*$D8),(S8*$D8*-1),((S8+P8))*-1),0) -> -14485 | U8: =T8+P8 -> -40011 | V8: =IF(S8=0,0,S8) -> 499468 | X8: =IF(V8+W8=0,0,V8+W8) -> 499468 | Y8: =ROUND(IF((X8+U8)>(X8*$D8),(X8*$D8*-1),((X8+U8))*-1),0) -> -14485 | Z8: =Y8+U8 -> -54496
A9: 3 | B9: 305 | C9: Collecting and Impounding Reservoirs | D9: 0.02 | E9: 50 | H9: 0 | J9: =ROUND(IF((H9+I9)>(H9*$D9),(H9*$D9*-1),((H9+I9))*-1),0) -> 0 | K9: 0 | L9: 0 | N9: 0 | O9: =ROUND(IF((N9+K9)>(N9*$D9),(N9*$D9*-1),((N9+K9))*-1),0) -> 0 | P9: 0 | Q9: 0 | S9: 0 | T9: =ROUND(IF((S9+P9)>(S9*$D9),(S9*$D9*-1),((S9+P9))*-1),0) -> 0 | U9: 0 | V9: 0 | X9: 0 | Y9: =ROUND(IF((X9+U9)>(X9*$D9),(X9*$D9*-1),((X9+U9))*-1),0) -> 0 | Z9: 0
A10: 4 | B10: 306 | C10: Lakes, Rivers, and Other Intakes | D10: 0.029 | E10: 35 | H10: 0 | J10: 0 | K10: 0 | L10: 0 | N10: 0 | O10: 0 | P10: 0 | Q10: 0 | S10: 0 | T10: 0 | U10: 0 | V10: 0 | X10: 0 | Y10: 0 | Z10: 0
A11: 5 | B11: 307 | C11: Wells and Springs | D11: 0.04 | E11: 25 | F11: 20000 | H11: 20000 | I11: -400 | J11: =ROUND(IF((H11+I11)>(H11*$D11),(H11*$D11*-1),((H11+I11))*-1),0) -> -800 | K11: -1200 | L11: 20000 | N11: 20000 | O11: =ROUND(IF((N11+K11)>(N11*$D11),(N11*$D11*-1),((N11+K11))*-1),0) -> -800 | P11: -2000 | Q11: 20000 | S11: 20000 | T11: =ROUND(IF((S11+P11)>(S11*$D11),(S11*$D11*-1),((S11+P11))*-1),0) -> -800 | U11: -2800 | V11: 20000 | W11: 47143 | X11: 67143 | Y11: =ROUND(IF((X11+U11)>(X11*$D11),(X11*$D11*-1),((X11+U11))*-1),0) -> -2686 | Z11: -5486
A12: 6 | B12: 308 | C12: Infiltration Galleries and Tunnels | D12: 0.04 | E12: 25 | H12: 0 | J12: =ROUND(IF((H12+I12)>(H12*$D12),(H12*$D12*-1),((H12+I12))*-1),0) -> 0 | K12: 0 | L12: 0 | N12: 0 | O12: =ROUND(IF((N12+K12)>(N12*$D12),(N12*$D12*-1),((N12+K12))*-1),0) -> 0 | P12: 0 | Q12: 0 | S12: 0 | T12: =ROUND(IF((S12+P12)>(S12*$D12),(S12*$D12*-1),((S12+P12))*-1),0) -> 0 | U12: 0 | V12: 0 | X12: 0 | Y12: =ROUND(IF((X12+U12)>(X12*$D12),(X12*$D12*-1),((X12+U12))*-1),0) -> 0 | Z12: 0
A13: 7 | B13: 309 | C13: Supply Mains | D13: 0.02 | E13: 50 | H13: 0 | J13: 0 | K13: 0 | L13: 0 | N13: 0 | O13: 0 | P13: 0 | Q13: 0 | S13: 0 | T13: 0 | U13: 0 | V13: 0 | X13: 0 | Y13: 0 | Z13: 0
A14: 8 | B14: 310 | C14: Power Generation Equipment | D14: 0.09 | E14: 10 | H14: 0 | J14: 0 | K14: 0 | L14: 0 | N14: 0 | O14: 0 | P14: 0 | Q14: 0 | S14: 0 | T14: 0 | U14: 0 | V14: 0 | X14: 0 | Y14: 0 | Z14: 0
A15: 9 | B15: 311 | C15: Pumping Equipment | D15: 0.05 | E15: 20 | H15: 0 | J15: 0 | K15: 0 | L15: 0 | M15: 29014 | N15: 29014 | O15: -1451 | P15: -1451 | Q15: 29014 | S15: 29014 | T15: -1451 | U15: -2902 | V15: 29014 | X15: 29014 | Y15: -1451 | Z15: -4353
A16: 10 | B16: 320 | C16: Water Treatment Equipment | D16: 0.05 | E16: 20 | H16: 0 | J16: 0 | K16: 0 | L16: 0 | N16: 0 | O16: 0 | P16: 0 | Q16: 0 | S16: 0 | T16: 0 | U16: 0 | V16: 0 | X16: 0 | Y16: 0 | Z16: 0
A17: 11 | B17: 330 | C17: Distribution Reservoirs & Standpipes | D17: 0.033 | E17: 30 | H17: 0 | I17: -4202 | J17: 4202 | K17: 0 | L17: 0 | N17: 0 | O17: 0 | P17: 0 | Q17: 0 | S17: 0 | T17: 0 | U17: 0 | V17: 0 | X17: 0 | Y17: 0 | Z17: 0
A18: 12 | B18: 331 | C18: Transmission and Distribution Mains | D18: 0.02 | E18: 50 | F18: 75000 | H18: 75000 | I18: -750 | J18: -1500 | K18: -2250 | L18: 75000 | N18: 75000 | O18: -1500 | P18: -3750 | Q18: 75000 | S18: 75000 | T18: -1500 | U18: -5250 | V18: 75000 | X18: 75000 | Y18: -1500 | Z18: -6750
A19: 13 | B19: 333 | C19: Services | D19: 0.033 | E19: 30 | H19: 0 | J19: 0 | K19: 0 | L19: 0 | N19: 0 | O19: 0 | P19: 0 | Q19: 0 | S19: 0 | T19: 0 | U19: 0 | V19: 0 | X19: 0 | Y19: 0 | Z19: 0
A20: 14 | B20: 334 | C20: Meters and Meter Installations | D20: 0.026 | E20: 35 | H20: 0 | J20: 0 | K20: 0 | L20: 0 | N20: 0 | O20: 0 | P20: 0 | Q20: 0 | S20: 0 | T20: 0 | U20: 0 | V20: 0 | X20: 0 | Y20: 0 | Z20: 0
A21: 15 | B21: 335 | C21: Hydrants | D21: 0.024 | E21: 40 | H21: 0 | J21: 0 | K21: 0 | L21: 0 | N21: 0 | O21: 0 | P21: 0 | Q21: 0 | S21: 0 | T21: 0 | U21: 0 | V21: 0 | X21: 0 | Y21: 0 | Z21: 0
A22: 16 | B22: 336 | C22: Backflow Prevention Devices | D22: 0.026 | E22: 35 | H22: 0 | J22: 0 | K22: 0 | L22: 0 | N22: 0 | O22: 0 | P22: 0 | Q22: 0 | S22: 0 | T22: 0 | U22: 0 | V22: 0 | X22: 0 | Y22: 0 | Z22: 0
A23: 17 | B23: 339 | C23: Other Plant & Misc. Equipment | D23: 0.09 | E23: 10 | H23: 0 | J23: 0 | K23: 0 | L23: 0 | N23: 0 | O23: 0 | P23: 0 | Q23: 0 | S23: 0 | T23: 0 | U23: 0 | V23: 0 | X23: 0 | Y23: 0 | Z23: 0
A24: 18 | B24: 340 | C24: Office Furniture and Equipment | D24: 0.048 | E24: 20 | H24: 0 | J24: 0 | K24: 0 | L24: 0 | N24: 0 | O24: 0 | P24: 0 | Q24: 0 | S24: 0 | T24: 0 | U24: 0 | V24: 0 | X24: 0 | Y24: 0 | Z24: 0
A25: 19 | B25: 341 | C25: Transportation Equipment | D25: 0.129 | E25: 7 | H25: 0 | J25: 0 | K25: 0 | L25: 0 | N25: 0 | O25: 0 | P25: 0 | Q25: 0 | S25: 0 | T25: 0 | U25: 0 | V25: 0 | X25: 0 | Y25: 0 | Z25: 0
A26: 20 | B26: 342 | C26: Stores Equipment | D26: 0.05 | E26: 20 | H26: 0 | J26: 0 | K26: 0 | L26: 0 | N26: 0 | O26: 0 | P26: 0 | Q26: 0 | S26: 0 | T26: 0 | U26: 0 | V26: 0 | X26: 0 | Y26: 0 | Z26: 0
A27: 21 | B27: 343 | C27: Tools, Shop and Garage Equipment | D27: 0.063 | E27: 15 | H27: 0 | J27: 0 | K27: 0 | L27: 0 | N27: 0 | O27: 0 | P27: 0 | Q27: 0 | S27: 0 | T27: 0 | U27: 0 | V27: 0 | X27: 0 | Y27: 0 | Z27: 0
A28: 22 | B28: 344 | C28: Laboratory Equipment | D28: 0.067 | E28: 15 | H28: 0 | J28: 0 | K28: 0 | L28: 0 | N28: 0 | O28: 0 | P28: 0 | Q28: 0 | S28: 0 | T28: 0 | U28: 0 | V28: 0 | X28: 0 | Y28: 0 | Z28: 0
A29: 23 | B29: 345 | C29: Power Operated Equipment | D29: 0.09 | E29: 10 | H29: 0 | J29: 0 | K29: 0 | L29: 0 | N29: 0 | O29: 0 | P29: 0 | Q29: 0 | S29: 0 | T29: 0 | U29: 0 | V29: 0 | X29: 0 | Y29: 0 | Z29: 0
A30: 24 | B30: 346 | C30: Communication Equipment | D30: 0.09 | E30: 10 | H30: 0 | J30: 0 | K30: 0 | L30: 0 | N30: 0 | O30: 0 | P30: 0 | Q30: 0 | S30: 0 | T30: 0 | U30: 0 | V30: 0 | X30: 0 | Y30: 0 | Z30: 0
A31: 25 | B31: 347 | C31: Miscellaneous Equipment | D31: 0.09 | E31: 10 | F31: 6390 | H31: 6390 | J31: -575 | K31: -575 | L31: 6390 | N31: 6390 | O31: -575 | P31: -1150 | Q31: 6390 | S31: 6390 | T31: -575 | U31: -1725 | V31: 6390 | X31: 6390 | Y31: -575 | Z31: -2300
A32: 26 | B32: 348 | C32: Other Tangible Plant | D32: 0.09 | E32: 10 | H32: 0 | J32: 0 | K32: 0 | L32: 0 | N32: 0 | O32: 0 | P32: 0 | Q32: 0 | S32: 0 | T32: 0 | U32: 0 | V32: 0 | X32: 0 | Y32: 0 | Z32: 0
A33: 27 | N33: 0 | P33: 0 | U33: 0 | Z33: 0
A34: 28 | N34: 0 | P34: 0 | U34: 0 | Z34: 0
A35: 29 | N35: 0 | P35: 0 | U35: 0 | Z35: 0
A36: 30 | D36: TOTALS | F36: =SUM(F8:F35) -> 356916 | G36: 111390 | H36: 468306 | I36: -5752 | J36: -9314 | K36: -15066 | L36: 468306 | M36: 161566 | N36: 629872 | O36: -18811 | P36: -33877 | Q36: 629872 | R36: 0 | S36: 629872 | T36: -18811 | U36: -52688 | V36: 629872 | W36: 47143 | X36: =SUM(X8:X35) -> 677015 | Y36: =SUM(Y8:Y35) -> -20697 | Z36: -73385 | AB36: =SUM(AB7:AB35) -> 0
F37: =F5 -> 2009 Plant Accounts | L37: =L5 -> 2010 Plant Accounts | Q37: =Q5 -> 2011 Plant Accounts | Y37: [To Exh 1.5] | Z37: [To Amended Exh 1.8 SR] | AB37: [To Amended Exhibit 1.8 SR]
C52: -------------------------------------------------- end ------------------------------------------------------

Sheet Amd 1.8 SR RATE BASE
B1: ='Amd 1.2 SR Rates'!B1 -> Willow Creek Water Company | F1: Amended Exhibit 1.8 SR
B2: ='Amd 1.2 SR Rates'!B2 -> General Rate Case Increase | F2: ='Amd 1.2 SR Rates'!L2 -> Docket No. 13-2506-01
B3: Rate Base
C5: Per | E5: Division
C6: 2012 Annual | E6: Proposed
B7: Description | C7: Reports | D7: Adjustments | E7: Rate base | F7: Reference
A8: 1 | B8: Rate base Summary
A9: 2 | B9: Utility Plant in Service | E9: =E22 -> 0 | F9: [From Line 14]
A10: 3 | B10: Working Capital | E10: =E35 -> 2645.107397 | F10: [From Line 23]
A11: 4 | B11: Total Rate base [Line 2 + Line 3] | E11: =E9+E10 -> 2645.107397 | F11: [To Amd Exhibit 1.9 SR]
A14: 5 | B14: Utility Plant in Service (Investment Included in Rate base)
A15: 6 | B15: Utility Plant In Service | C15: 602015 | D15: =E15-C15 -> 75000 | E15: =Tot_Assets -> 677015 | F15: [From Exhibit 1.6]
A16: 7 | B16: Accumulated Depreciation | C16: -19197 | D16: =E16-C16 -> -54188 | E16: =Accum_Dep -> -73385 | F16: [From Exhibit 1.6]
A17: 8 | B17: Net Utility Plant In Service | C17: =SUM(C15:C16) -> 582818 | D17: 20812 | E17: =SUM(E15:E16) -> 603630
A18: 9
A19: 11 | B19: Contributions In Aid of Construction | C19: 0 | D19: =E19-C19 -> -677015 | E19: =Tot_CIAC*-1 -> -677015 | F19: [From Exhibit 1.7]
A20: 12 | B20: Accum. Amor. CIAC | C20: 0 | D20: =E20-C20 -> 73385 | E20: =Accum_CIAC*-1 -> 73385 | F20: [From Exhibit 1.7]
A21: 13 | B21: Net Contributions In Aid of Construction | C21: =SUM(C19:C20) -> 0 | D21: -603630 | E21: =SUM(E19:E20) -> -603630
A22: 14 | B22: Net Utility Plant in Service (Investment Included in Rate Base) | E22: =E17+E21 -> 0 | F22: [Line 8 Plus Line 13]
A25: 15 | B25: Working Capital
A26: 16 | B26: Customer Deposits | C26: 0 | D26: 0 | E26: 0
A28: 17 | B28: Cash Working Capital
A29: 18 | B29: Cash on Hand | C29: 2809.76 | D29: =E29-C29 -> 0 | E29: 2809.76
A30: 19 | B30: Total Operations & Maintenance Expense | C30: ='Amd 1.3 SR Expenses'!D39 -> 22296 | D30: =E30-C30 -> -3651 | E30: =OandM_Exp -> 18645 | F30: [From Amd Exhibit 1.3 SR]
A31: 20 | B31: Less: Purchased Water | C31: =Purch_H2O -> 0 | D31: =E31-C31 -> 0 | E31: =Purch_H2O -> 0
A32: 21 | B32: Adjusted Total Operations & Maintenance Exp. | C32: =SUM(C29:C31) -> 25105.76 | D32: -3651 | E32: =SUM(E29:E31) -> 21454.76
A33: 22 | B33: Cash Working Capitol to allow for 45 days of cash on hand (line 23 X (45/365)) | E33: =E32*45/365 -> 2645.107397
A35: 23 | B35: Net Working Capital | C35: =SUM(C28:C28) -> 0 | D35: =SUM(D26:D28) -> 0 | E35: =E26+E33 -> 2645.107397 | F35: [Lines 14 + 16 + 22]
A47: -------------------------------------------------- end ------------------------------------------------------

Sheet Amd 1.9 SR Ret on Inv
B1: ='Amd 1.2 SR Rates'!B1 -> Willow Creek Water Company | F1: Amended Exhibit 1.9 SR
B2: ='Amd 1.2 SR Rates'!B2 -> General Rate Case Increase | G2: ='Amd 1.2 SR Rates'!L2 -> Docket No. 13-2506-01
B3: Return on Investment
B5: Description | C5: Amount | F5: Reference
A6: 1 | B6: Rate Base | C6: ='Amd 1.8 SR RATE BASE'!E11 -> 2645.107397 | D6: [From Amended Exhibit 1.8 SR]
A7: 2 | B7: Rate Of Return On Investment | C7: 0.12
A8: 3 | B8: Return On Investment [line 1 x line 2] | C8: =C6*C7 -> 317.4128877
A10: 4 | B10: Company is Non-Profit and receives no return on investment | C10: 0 | D10: [To Amended Exhibit 1.3 SR]
B21: -------------------------------------------------- end ------------------------------------------------------
A31: (a) | B31: Return Calculation
B32: Description | C32: Amount | D32: Percentage | F32: Allowed Rate of Return | G32: Return Amount
A33: 9 | B33: Common Equity | C33: 0 | D33: =ROUND(C33/C36,4) -> 0 | F33: 0.12 | G33: =ROUND(F33*D33,4) -> 0
A34: 10 | B34: Misc current & accrued liabilities | C34: 0 | D34: =ROUND(C34/$C$36,4) -> 0 | F34: 0.06 | G34: =ROUND(F34*D34,4) -> 0
A35: 11 | B35: Net CIAC | C35: 1e-05 | D35: =ROUND(C35/$C$36,4) -> 1 | F35: 0.12 | G35: =ROUND(F35*D35,4) -> 0.12
A36: 12 | B36: Totals | C36: =SUM(C33:C35) -> 1e-05 | D36: =SUM(D33:D35) -> 1 | G36: =SUM(G33:G35) -> 0.12

Sheet Amd 1.10 SR Taxes
B1: ='Amd 1.2 SR Rates'!B1 -> Willow Creek Water Company | D1: Amended Exhibit 1.10 SR
B2: ='Amd 1.2 SR Rates'!B2 -> General Rate Case Increase | E2: ='Amd 1.2 SR Rates'!L2 -> Docket No. 13-2506-01
B3: Projected Federal & State Income Taxes
B5: Description | C5: Amount | D5: Reference
B6: Tax Calculation
A7: 1 | B7: Federal Income Tax Rate Used in Calculation | C7: 0.15
A8: 2 | B8: State Income Tax Rate Used in Calculation | C8: 0.05
A9: 3 | B9: Total Tax Rate Used [Line 1 + Line 2] | C9: =C7+C8 -> 0.2
A10: 4
A11: 5 | B11: Tax gross-up factor [line 3 ÷ (1 - line 3)] | C11: =C9/(1-C9) -> 0.25
A12: 6
A13: 7 | B13: Projected Total Revenue Before Taxes | C13: ='Amd 1.4 SR Rev & Exp'!G13 -> 39385.2 | D13: [From Amd Exhibit 1.4 SR]
A14: 8 | B14: Projected Operation & Maintenance Expenses | C14: =-'Amd 1.4 SR Rev & Exp'!G22 -> -18645 | D14: [From Amd Exhibit 1.3 SR]
A15: 9 | B15: Projected Depreciation Expense | C15: =Dep_Exp -> -20697 | D15: [From Exhibit 1.6]
A16: 10 | B16: Projected Net Taxable Income | C16: =SUM(C13:C15) -> 43.2
A17: 11
A18: 12
A19: 13 | B19: Estimated Federal and State Income Tax Obligation [line 5 X line 10] | C19: =C16*C11 -> 10.8
A21: 14 | B21: Company is Non-Profit and owes no Income Taxes | C21: 0 | D21: [To Amd Exhibit 1.3 SR]
A32: -------------------------------------------------- end ------------------------------------------------------

Sheet 1.11 SR Mod to Expenses
B1: Willow Creek Water Company | E1: Modifications to Expense Amounts, Exhibit 1.11 SR
B2: General Rate Case Increase | G2: Docket No. 13-2506-01
B3: Modifications to Expense Amounts
D5: Projected | F5: Additional | G5: Adjusted
D6: Expenses | F6: Division | G6: Total
D7: [From Rate | E7: Division | F7: Adjustments | G7: Expense
B8: Expense Category | C8: NARUC # | D8: Case Filing] | E8: Adjustments | F8: [AMENDED]
A9: 1 | B9: Operation & Maintenance Expenses
A10: 2 | B10: Salaries & Wages - Office Employees | C10: 601 | D10: 0 | E10: 0 | F10: 0 | G10: 0
A11: 3 | B11: Salaries & Wages - Officers & Directors | C11: 603 | D11: 0 | E11: 0 | F11: 0 | G11: 0
A12: 4 | B12: Employee Pensions & Benefits | C12: 604 | D12: 0 | E12: 0 | F12: 0 | G12: 0
A13: 5 | B13: Purchased Water | D13: 0 | E13: 0 | F13: 0 | G13: 0
A14: 6 | B14: Purchased Power (Electricity) | C14: 615 | D14: 3120 | E14: 0 | F14: -320 | G14: 0
A15: 7 | B15: Purchased Power (Propane) | C15: 615 | D15: 1080 | E15: 0 | F15: -1080 | G15: 2800
A16: 8 | B16: Chemicals | C16: 618 | D16: 900 | E16: -350 | F16: 0 | G16: 0
A17: 9 | B17: Materials and Supplies | C17: 620 | D17: 0 | E17: 0 | F17: 0 | G17: 550
A18: 10 | B18: Contractual Services - Engineering | C18: 631 | D18: 0 | E18: 0 | F18: 0 | G18: 0
A19: 11 | B19: Contractual Services - Accounting | C19: 632 | D19: 2160 | E19: 0 | F19: -760 | G19: 0
A20: 12 | B20: Contractual Services - Legal | C20: 633 | D20: 960 | E20: -460 | F20: 0 | G20: 1400
A21: 13 | B21: Contractual Services - Management Fees | C21: 634 | D21: 0 | E21: 0 | F21: 0 | G21: 500
A22: 14 | B22: Contractual Services - Testing & Lab Fees | C22: 635a | D22: 2496 | E22: -496 | F22: -600 | G22: 0
A23: 15 | B23: Contractual Services - Water Sampling | C23: 635b | D23: 0 | E23: 0 | F23: 0 | G23: 1400
A24: 16 | B24: Contractual Services - Water System Maintenance | C24: 636 | D24: 0 | E24: 3300 | F24: -1500 | G24: 0
A25: 17 | B25: Contractual Services - Water System Repairs | C25: 637 | D25: 3000 | E25: 0 | F25: -1200 | G25: 1800
A26: 18 | B26: Contractual Services - Other (Equipment Operator) | C26: 640 | D26: 600 | E26: 0 | F26: 0 | G26: 1800
A27: 19 | B27: Contractual Services - Billing (Meter Reading) | C27: 639 | D27: 360 | E27: -360 | F27: 0 | G27: 600
A28: 20 | B28: Interest-Free Loan Payments for Arsenic Project | C28: 675 | D28: 5520 | E28: 0 | F28: 0 | G28: 0
A29: 21 | B29: Transportation Expense | C29: 650 | D29: 0 | E29: 0 | F29: 0 | G29: 5520
A30: 22 | B30: Insurance - General Liability | C30: 657 | D30: 2100 | E30: 0 | F30: -300 | G30: 0
A31: 23 | B31: Insurance - Other | C31: 659 | D31: 0 | E31: 0 | F31: 0 | G31: 1800
A32: 24 | B32: Regulatory Commission Expense | C32: 667 | D32: 0 | E32: 50 | F32: 0 | G32: 0
A33: 25 | B33: Bad Debt Expense | C33: 670 | D33: 0 | E33: 0 | F33: 0 | G33: 50
A34: 26 | B34: Miscellaneous Expense | C34: 675 | D34: 0 | E34: 0 | F34: 0 | G34: 0
A35: 27 | B35: Association/Membership Dues | C35: 675a | D35: 0 | E35: 0 | F35: 0 | G35: 0
A36: 28 | B36: Office Supplies and Postage | C36: 675b | D36: 0 | E36: 425 | F36: 0 | G36: 0
A37: 29 | B37: Bank Charges | C37: 675c | D37: 0 | E37: 0 | F37: 0 | G37: 425
A38: 30 | B38: Other Supplies | C38: 675d | D38: 0 | E38: 0 | F38: 0 | G38: 0
A39: 31 | B39: Total Operation & Maintenance Expenses | D39: 22296 | E39: 2109 | F39: -5760 | G39: 18645
A41: 32 | B41: Annual Capital Reserve Account Funding
A42: 33 | B42: Annual Capital Reserve Account Funding | C42: 403 | E42: 20697 | G42: 20697
A43: 34 | B43: Annual Capital Reserve Account Funding | D43: 0 | E43: 20697 | G43: 20697
A45: 35 | B45: Return on Investment (Profit)
A46: 36 | B46: Return on Investment | D46: 0 | E46: 0 | F46: 0 | G46: 0
A47: 37 | B47: Total Return on Investment (Profit) | D47: 0 | E47: 0 | F47: 0 | G47: 0
A49: 38 | B49: Taxes
A50: 39 | B50: Property Tax | C50: 408 | D50: 0 | E50: 11 | G50: 11
A51: 40 | B51: Projected Federal and State Income Tax | C51: 409 | D51: 0 | E51: 0 | G51: 0
A52: 41 | B52: Total Taxes | D52: 0 | E52: 11 | G52: 11
A64: -------------------------------------------------- end ------------------------------------------------------

Sheet 1.12 SR Mod to Customers #
B1: Willow Creek Water Company | F1: Modifications to Customer Numbers and Overage Rate, Exhibit 1.12 SR
B2: General Rate Case Increase | L2: Docket No. 13-2506-01
B3: Modifications to Customer Numbers and Overage Rate
D4: A | F4: B
B5: Rate Summary
D6: All Customers
D7: Including | F7: Connected
D8: Standby | F8: Customers
A9: 1 | B9: System Fees (Standby) | D9: 39.85 | F9: 39.85
A10: 2 | B10: Usage Fees | F10: 31.95
A11: 3 | B11: Total Rates | D11: 39.85 | F11: 71.8
A12: 4
A13: 5 | B13: Overage (Conservation) Rates | F13: $5.50 $4.50
A14: 6
D15: Adjusted | F15: System Expenses (Fixed) | J15: Usage Expenses (Variable)
D16: Total | F16: (Paid by ALL Customers) | J16: (Paid by CONNECTED Only)
D17: Expenses | F17: Total Customers: | H17: 38 48 | J17: Total CONNECTED: | L17: 33 43
B18: Expense Category | C18: NARUC # | D18: [From Exh 1.3] | F18: Amount | G18: % | H18: Monthly Rates | J18: Amount | K18: % | L18: Monthly Rates
A19: 7 | B19: Operation & Maintenance Expenses
A20: 8 | B20: Salaries & Wages - Office Employees | C20: 601 | D20: 0 | F20: 0 | G20: 0.2 | J20: 0 | K20: 0.8
A21: 9 | B21: Salaries & Wages - Officers & Directors | C21: 603 | D21: 0 | F21: 0 | G21: 0.2 | J21: 0 | K21: 0.8
A22: 10 | B22: Employee Pensions & Benefits | C22: 604 | D22: 0 | F22: 0 | G22: 0.2 | J22: 0 | K22: 0.8
A23: 11 | B23: Purchased Water | D23: 0 | F23: 0 | G23: 0 | J23: 0 | K23: 1
A24: 12 | B24: Purchased Power (Electricity) | C24: 610 | D24: 2800 | F24: 0 | G24: 0 | J24: 2800 | K24: 1
A25: 13 | B25: Purchased Power (Propane) | C25: 615 | D25: 0 | F25: 0 | G25: 0 | J25: 0 | K25: 1
A26: 14 | B26: Chemicals | C26: 618 | D26: 550 | F26: 0 | G26: 0 | J26: 550 | K26: 1
A27: 15 | B27: Materials and Supplies | C27: 620 | D27: 0 | F27: 0 | G27: 0.1 | J27: 0 | K27: 0.9
A28: 16 | B28: Contractual Services - Engineering | C28: 631 | D28: 0 | F28: 0 | G28: 0.05 | J28: 0 | K28: 0.95
A29: 17 | B29: Contractual Services - Accounting | C29: 632 | D29: 1400 | F29: 140 | G29: 0.1 | J29: 1260 | K29: 0.9
A30: 18 | B30: Contractual Services - Legal | C30: 633 | D30: 500 | F30: 25 | G30: 0.05 | J30: 475 | K30: 0.95
A31: 19 | B31: Contractual Services - Management Fees | C31: 634 | D31: 0 | F31: 0 | G31: 0.05 | J31: 0 | K31: 0.95
A32: 20 | B32: Contractual Services - Testing & Lab Fees | C32: 635a | D32: 1400 | F32: 70 | G32: 0.05 | J32: 1330 | K32: 0.95
A33: 21 | B33: Contractual Services - Water Sampling | C33: 635b | D33: 0 | F33: 0 | G33: 0.05 | J33: 0 | K33: 0.95
A34: 22 | B34: Contractual Services - Water System Maintenance | C34: 636 | D34: 1800 | F34: 90 | G34: 0.05 | J34: 1710 | K34: 0.95
A35: 23 | B35: Contractual Services - Water System Repairs | C35: 637 | D35: 1800 | F35: 360 | G35: 0.2 | J35: 1440 | K35: 0.8
A36: 24 | B36: Contractual Services - Other (Equipment Operator) | D36: 600 | F36: 120 | G36: 0.2 | J36: 480 | K36: 0.8
A37: 25 | B37: Contractual Services - Billing (Meter Reading) | C37: 639 | D37: 0 | F37: 0 | G37: 0.2 | J37: 0 | K37: 0.8
A38: 26 | B38: Interest-Free Loan Payments for Arsenic Project | C38: 642 | D38: 5520 | F38: 1104 | G38: 0.2 | J38: 4416 | K38: 0.8
A39: 27 | B39: Transportation Expense | C39: 650 | D39: 0 | F39: 0 | G39: 0.05 | J39: 0 | K39: 0.95
A40: 28 | B40: Insurance - General Liability | C40: 657 | D40: 1800 | F40: 180 | G40: 0.1 | J40: 1620 | K40: 0.9
A41: 29 | B41: Insurance - Other | C41: 659 | D41: 0 | F41: 0 | G41: 0.05 | J41: 0 | K41: 0.95
A42: 30 | B42: Regulatory Commission Expense | C42: 667 | D42: 50 | F42: 25 | G42: 0.5 | J42: 25 | K42: 0.5
A43: 31 | B43: Bad Debt Expense | C43: 670 | D43: 0 | F43: 0 | G43: 0.2 | J43: 0 | K43: 0.8
A44: 32 | B44: Miscellaneous Expense | C44: 675
A45: 33 | B45: Association/Membership Dues | C45: 675a | D45: 0 | F45: 0 | G45: 0.2 | J45: 0 | K45: 0.8
A46: 34 | B46: Office Supplies and Postage | C46: 675b | D46: 425 | F46: 85 | G46: 0.2 | J46: 340 | K46: 0.8
A47: 35 | B47: Bank Charges | C47: 675c | D47: 0 | F47: 0 | G47: 0.2 | J47: 0 | K47: 0.8
A48: 36 | B48: Other Supplies | C48: 675d | D48: 0 | F48: 0 | G48: 0.2 | J48: 0 | K48: 0.8
A49: 37 | B49: Total Operation & Maintenance Expenses | D49: 18645 | F49: 2199 | H49: 3.85 | J49: 16446 | L49: 31.9
A52: 38 | B52: Capital Reserve Account Funding
A53: 39 | B53: Annual Depreciation Expense | D53: 20697 | F53: 0
A54: 40 | B54: Total Capital Reserve Account Funding | D54: 20697 | F54: 20697 | H54: 35.95
A57: 41 | B57: Return on Investment (Profit)
A58: 42 | B58: Return on Investment | D58: 0 | F58: 0 | G58: 0.2 | K58: 0.8
A59: 43 | B59: Total Return on Investment (Profit) | D59: 0 | F59: 0 | H59: 0
A62: 44 | B62: Taxes
A63: 45 | B63: Property Tax | C63: 408 | D63: 11 | F63: 2.2 | G63: 0.2 | J63: 8.8 | K63: 0.8
A64: 46 | B64: Projected Federal and State Income Tax | C64: 409 | D64: 0 | F64: 0 | G64: 0.2 | J64: 0 | K64: 0.8
A65: 47 | B65: Total Taxes | D65: 11 | F65: 2.2 | H65: 0.05 | J65: 8.8 | L65: 0.05
A68: 48 | B68: Monthly Rates per Customer Category
A69: 49 | B69: System Fees (Paid by ALL Customer Categories) | H69: 39.85
A70: 50 | B70: Usage Fees (Paid by CONNECTED Customers Only and in addition)
A71: 51 | B71: to System Fees) | L71: 31.95
A85: -------------------------------------------------- end ------------------------------------------------------

Sheet Macro
B7: System | C7: =Rate_System_Fee -> 39.85
B8: User | C8: =Rate_User_Fee -> 31.95
B9: Total | C9: =Rate_User_Total -> 71.8
